bitfinex/quotes_ETHUSD_20241215
["timestamp","ask_amount","ask_price","bid_price","bid_amount"]
[1734271516809,3.65110208,3883.8,3882.9,0.7654]
[1734271517341,2.57484,3883.8,3882.9,0.7654]
[1734271520551,2.3880549,3884.1,3882.9,0.7654]
[1734271520848,0.8087,3883.5,3882.1,0.7654]
[1734271521016,2.57506,3883.4,3882.1,0.7654]
[1734271521221,4.90022121,3883.3,3882.2,0.0374425]
[1734271521399,1.24886553,3883.2,3882.2,0.0374425]
[1734271521608,3.65138208,3883.3,3882.2,0.0374425]
[1734271521930,2.57543,3882.9,3882.3,0.7654]
[1734271522130,2.32511093,3883.2,3882.3,0.7654]
[1734271522131,2.57547,3882.8,3882.3,0.7654]
[1734271523426,2.57552,3882.7,3882.3,0.7654]
[1734271523857,2.5756,3882.6,3882.3,0.7654]
[1734271524072,2.57567,3882.5,3881.4,0.7654]
[1734271524377,2.57567,3882.5,3881.6,0.7654]
[1734271524576,2.57567,3882.5,3881.7,0.02662373]
[1734271524725,2.57567,3882.5,3881.8,0.8139]
[1734271526040,2.57574,3882.4,3881.8,0.8139]
[1734271526550,2.57582,3882.3,3881.8,0.8139]
[1734271528741,1.07626208,3882.7,3881.8,0.8139]
[1734271528950,2.57564,3882.6,3881.8,0.8139]
[1734271529347,1.07626208,3882.8,3881.8,0.8139]
[1734271529529,2.57566,3882.5,3881.8,0.8139]
[1734271531435,1.07626208,3882.8,3881.8,0.8139]
[1734271531436,3.65176208,3882.8,3881.8,0.8139]
[1734271531633,4.07626208,3882.9,3881.8,0.8139]
[1734271531839,2.57552,3882.7,3881.8,0.8139]
[1734271533178,2.57565,3882.6,3881.8,0.8139]
[1734271533383,2.57566,3882.5,3881.8,0.8139]
[1734271533538,1.07626208,3882.8,3881.8,0.8139]
[1734271533747,2.57579,3882.3,3881.8,0.8139]
[1734271535534,1.07626208,3882.7,3881.8,0.8139]
[1734271535749,3.82469454,3882.6,3881.8,0.8139]
[1734271535981,2.57585,3882.3,3881.8,0.8139]
[1734271536182,2.57587,3882.2,3881.8,0.8139]
[1734271539371,2.57594,3882.1,3881.8,0.8139]
[1734271539624,2.57605,3881.9,3881.8,0.8139]
[1734271539926,2.57605,3881.9,3881.0,0.7895]
[1734271539927,2.5761,3881.9,3881.0,0.7895]
[1734271540091,2.5761,3881.9,3881.2,0.7895]
[1734271540623,2.5761,3881.9,3881.3,0.02539129]
[1734271541285,2.57575,3882.4,3881.4,0.7895]
[1734271541484,2.57575,3882.4,3881.4,0.81484108]
[1734271541678,1.61635794,3882.8,3881.4,0.81484108]
[1734271541679,2.5758,3882.3,3881.4,0.81484108]
[1734271541916,2.57587,3882.2,3881.4,0.81484108]
[1734271542126,2.57559,3882.6,3881.4,0.81484108]
[1734271542415,2.57594,3882.1,3881.4,0.81484108]
[1734271543324,2.57559,3882.6,3881.4,0.81484108]
[1734271543325,2.57579,3882.3,3881.4,0.81484108]
[1734271545629,2.5759,3882.2,3881.4,0.81484108]
[1734271545918,2.57593,3882.1,3881.4,0.81484108]
[1734271546122,0.8089,3882.4,3881.4,0.81484108]
[1734271546333,2.57612,3881.9,3881.4,0.81484108]
[1734271547682,2.57592,3882.1,3881.4,0.81484108]
[1734271547992,2.576,3882.0,3881.4,0.81484108]
[1734271548696,1.07626208,3882.6,3881.4,0.81484108]
[1734271548912,1.07626208,3883.0,3881.7,0.55]
[1734271549114,1.07626208,3883.6,3882.0,0.55]
[1734271549315,1.07626208,3883.9,3882.4,0.55]
[1734271549634,3.65093208,3884.0,3882.7,0.7895]
[1734271549799,2.57467,3884.0,3882.8,0.7895]
[1734271550012,2.57467,3884.0,3882.8,0.8143756]
[1734271550225,1.07626208,3884.1,3882.9,0.81525113]
[1734271550425,1.07626208,3884.1,3883.0,0.7895]
[1734271550426,2.32474808,3884.1,3883.0,0.7895]
[1734271550593,2.32474808,3884.1,3883.0,0.81615901]
[1734271550936,3.65079208,3884.2,3883.1,0.7895]
[1734271551083,1.24845255,3884.1,3883.1,0.7895]
[1734271551411,3.65079208,3884.2,3883.2,0.81826354]
[1734271551412,2.57453,3884.2,3883.2,0.81826354]
[1734271551815,2.57453,3884.2,3883.2,0.7895]
[1734271552058,2.57453,3884.2,3883.3,0.02870502]
[1734271552346,1.07626208,3884.7,3883.4,3.36455]
[1734271552627,2.57428,3884.6,3883.4,0.36852799]
[1734271552832,2.57428,3884.6,3883.5,0.7895]
[1734271560130,2.57436,3884.5,3883.5,0.7895]
[1734271560333,2.57423,3884.7,3883.5,0.7895]
[1734271560533,3.0,3884.6,3883.5,0.7895]
[1734271560737,4.45921208,3885.0,3883.6,2.57492]
[1734271560924,4.45921208,3885.0,3883.7,0.7686]
[1734271561631,2.5741,3884.9,3883.7,0.7686]
[1734271563139,2.57446,3884.3,3883.7,0.7686]
[1734271563355,2.57453,3884.2,3883.7,0.7686]
[1734271563507,2.57478,3883.9,3882.8,0.7686]
[1734271563705,0.7735,3884.3,3882.8,0.7686]
[1734271563907,2.5748,3883.8,3882.9,0.18374275]
[1734271564438,3.7735,3884.3,3882.9,0.18374275]
[1734271564642,2.57468,3884.0,3882.9,0.18374275]
[1734271565332,3.7735,3884.3,3882.9,0.18374275]
[1734271565514,3.7735,3884.3,3882.8,0.7686]
[1734271566304,2.57481,3883.8,3882.8,0.7686]
[1734271566500,3.7735,3884.3,3882.8,0.7686]
[1734271566705,2.57519,3883.2,3882.8,0.7686]
[1734271566939,0.7735,3883.6,3882.8,0.7686]
[1734271567457,2.57517,3883.3,3882.8,0.7686]
[1734271568004,0.7735,3883.6,3882.8,0.7686]
[1734271568005,2.57523,3883.2,3882.8,0.7686]
[1734271573518,0.7735,3883.6,3882.9,0.08047317]
[1734271573723,2.57504,3883.5,3882.8,0.7686]
[1734271573947,2.57504,3883.5,3882.9,0.08047319]
[1734271574252,0.7735,3883.6,3882.8,0.7686]
[1734271574253,2.57507,3883.4,3882.8,0.7686]
[1734271576199,3.51091676,3884.1,3882.8,0.7686]
[1734271576334,2.57482,3883.8,3883.0,0.7559]
[1734271576534,2.57487,3883.7,3883.1,0.08046636]
[1734271576733,2.57487,3883.7,3883.0,0.7559]
[1734271576734,3.51091676,3884.1,3883.0,0.7559]
[1734271576933,6.08557676,3884.1,3883.0,0.7559]
[1734271578350,2.57487,3883.7,3883.1,0.0804702]
[1734271578679,2.57487,3883.7,3883.0,0.7559]
[1734271578873,2.57487,3883.7,3883.1,0.08047138]
[1734271579090,2.57487,3883.7,3883.0,0.7559]
[1734271579379,2.5747,3884.0,3883.1,0.0804689]
[1734271579586,2.57474,3883.9,3883.2,0.08046588]
[1734271579878,2.57474,3883.9,3883.3,0.08046588]
[1734271580080,2.57474,3883.9,3883.0,0.7559]
[1734271580285,2.57474,3883.9,3883.1,0.08046568]
[1734271580468,2.57474,3883.9,3883.2,0.08046568]
[1734271580646,0.51091676,3884.1,3883.3,0.08046568]
[1734271580836,2.5748,3883.8,3883.0,0.7559]
[1734271581039,3.08556676,3884.1,3883.1,0.08046598]
[1734271581264,3.08556676,3884.1,3883.2,0.83636598]
[1734271581454,3.08556676,3884.1,3883.3,0.08046598]
[1734271581640,2.57466,3884.0,3883.2,0.7559]
[1734271581835,2.57466,3884.0,3883.3,0.08046447]
[1734271582063,2.57466,3884.0,3883.4,0.08046447]
[1734271582299,2.57466,3884.0,3883.2,0.7559]
[1734271582669,2.57466,3884.0,3883.3,0.08046403]
[1734271582860,2.57466,3884.0,3883.4,0.08046403]
[1734271583065,2.57466,3884.0,3883.2,0.7559]
[1734271583374,2.57466,3884.0,3883.3,0.0804624]
[1734271583563,2.57466,3884.0,3883.4,0.0804624]
[1734271583763,2.57466,3884.0,3883.5,0.0804624]
[1734271583970,3.0,3884.2,3882.9,0.7559]
[1734271584198,3.0,3884.2,3883.4,0.7559]
[1734271584380,3.0,3884.2,3883.5,0.08046095]
[1734271584696,3.0,3884.2,3883.6,0.08046095]
[1734271584897,3.0,3884.2,3883.7,0.08046095]
[1734271585068,3.0,3884.2,3883.4,0.7559]
[1734271585264,3.0,3884.2,3883.5,0.08045874]
[1734271585512,3.0,3884.2,3883.6,0.08045874]
[1734271585712,5.57453,3884.2,3883.7,0.08045874]
[1734271585915,3.0,3884.4,3883.4,0.7559]
[1734271586219,3.0,3884.4,3883.6,0.7566]
[1734271586424,3.64844911,3884.8,3883.7,0.08045762]
[1734271586425,2.57421,3884.7,3883.7,0.08045762]
[1734271586588,2.57421,3884.7,3883.8,0.83705762]
[1734271586797,2.57421,3884.7,3884.0,0.7566]
[1734271587126,0.52146504,3885.0,3884.2,0.7566]
[1734271587321,0.52146504,3885.0,3884.3,0.08044812]
[1734271587523,2.57397,3885.1,3884.2,0.7566]
[1734271587524,2.57397,3885.1,3884.4,0.08044812]
[1734271587670,2.57397,3885.1,3884.2,0.7566]
[1734271587671,2.57397,3885.1,3884.5,0.08044812]
[1734271587873,2.57397,3885.1,3884.2,0.7566]
[1734271588107,2.57397,3885.1,3884.3,0.08044055]
[1734271588312,2.57397,3885.1,3884.4,0.08044055]
[1734271588524,0.50240903,3885.3,3884.4,0.08044115]
[1734271588725,2.57402,3885.0,3884.2,0.7566]
[1734271589039,2.57407,3884.9,3884.2,0.7566]
[1734271589331,0.50240903,3885.3,3884.2,0.7566]
[1734271589332,2.57392,3885.2,3884.2,0.7566]
[1734271589534,2.57395,3885.1,3884.3,0.08044225]
[1734271589742,2.57395,3885.1,3884.4,0.08044004]
[1734271589941,0.50240903,3885.3,3884.2,0.7566]
[1734271590122,2.57402,3885.0,3884.2,0.7566]
[1734271590325,2.57433,3884.5,3884.2,0.7566]
[1734271591840,2.57441,3884.4,3884.2,0.7566]
[1734271592196,2.57441,3884.4,3883.3,3.0]
[1734271592197,2.57441,3884.4,3883.7,0.7566]
[1734271592493,2.57441,3884.4,3883.8,0.08045094]
[1734271592839,2.57441,3884.4,3883.7,0.7566]
[1734271592840,2.57441,3884.4,3883.9,0.08045094]
[1734271592996,2.57441,3884.4,3883.7,0.7566]
[1734271593194,2.57441,3884.4,3883.8,0.08045128]
[1734271593531,1.85464911,3884.9,3883.9,0.08045128]
[1734271593532,1.07424911,3884.8,3883.9,0.08045128]
[1734271593698,0.7804,3884.5,3882.6,3.6443775]
[1734271593902,2.5748,3883.8,3882.8,0.7566]
[1734271594225,2.57464,3884.1,3883.0,0.7566]
[1734271594542,2.5744,3884.4,3883.0,0.7566]
[1734271594543,2.57468,3884.0,3883.2,0.7566]
[1734271594934,2.5748,3883.8,3883.3,0.08045976]
[1734271595096,2.5748,3883.8,3883.4,0.08045976]
[1734271595297,2.5748,3883.8,3883.2,0.7566]
[1734271595621,1.07424911,3884.4,3883.3,0.08046244]
[1734271595822,2.57486,3883.7,3883.2,0.7566]
[1734271596793,2.57471,3884.0,3883.2,0.7566]
[1734271596995,2.57474,3883.9,3883.2,0.7566]
[1734271597203,2.57482,3883.8,3883.2,0.7566]
[1734271597404,2.57482,3883.8,3883.3,0.08046468]
[1734271597629,2.57482,3883.8,3883.2,0.7566]
[1734271597832,2.57463,3884.1,3883.3,0.08046497]
[1734271598049,2.57463,3884.1,3883.4,0.89115948]
[1734271598253,2.57463,3884.1,3883.4,0.8107]
[1734271598606,2.57463,3884.1,3883.5,0.08046021]
[1734271598806,1.07424911,3884.4,3883.4,0.8107]
[1734271598807,3.64869911,3884.4,3883.4,0.8107]
[1734271599008,1.07424911,3884.6,3883.6,0.8107]
[1734271599203,1.24848399,3884.6,3883.8,0.8107]
[1734271599433,2.57424,3884.7,3884.0,0.8107]
[1734271600756,1.07424911,3884.9,3884.0,0.8107]
[1734271600999,1.07424911,3885.0,3884.1,0.08044563]
[1734271601125,1.07424911,3885.1,3884.2,0.89114479]
[1734271601308,3.64820911,3885.1,3884.2,0.8107]
[1734271601506,1.2481521,3885.0,3884.2,0.8107]
[1734271601756,3.64820911,3885.1,3884.3,0.08044405]
[1734271601757,2.57396,3885.1,3884.3,0.08044405]
[1734271601956,1.07424911,3885.2,3884.4,0.8107]
[1734271602146,1.07424911,3885.3,3884.4,0.8107]
[1734271602348,2.57387,3885.2,3884.4,0.8107]
[1734271602659,2.57387,3885.2,3884.5,0.08043606]
[1734271602868,2.57387,3885.2,3884.4,0.8107]
[1734271603153,2.57387,3885.2,3884.6,0.8107]
[1734271604462,1.61635794,3885.6,3884.7,0.08043212]
[1734271604463,2.57362,3885.6,3884.7,0.08043212]
[1734271604609,4.07424911,3885.7,3884.4,0.8107]
[1734271604815,2.57369,3885.5,3884.5,0.08043136]
[1734271605153,2.57369,3885.5,3884.6,0.87163136]
[1734271605322,2.57369,3885.5,3884.7,0.08043136]
[1734271605528,2.57369,3885.5,3884.6,0.7912]
[1734271605729,2.57369,3885.5,3884.7,0.08043268]
[1734271605914,2.57369,3885.5,3884.6,0.7912]
[1734271606114,2.57369,3885.5,3884.7,0.08043081]
[1734271606314,2.57369,3885.5,3884.6,0.7912]
[1734271606552,2.57369,3885.5,3884.7,0.08043081]
[1734271606754,3.0,3885.7,3884.6,0.7912]
[1734271606956,2.57381,3885.3,3884.6,0.7912]
[1734271607454,4.58339561,3885.8,3884.6,0.7912]
[1734271607963,1.2466488,3885.7,3884.6,0.7912]
[1734271608262,2.57361,3885.6,3884.6,0.7912]
[1734271608407,2.57361,3885.6,3883.7,3.0]
[1734271608408,2.57361,3885.6,3884.8,0.7912]
[1734271608625,2.57344,3885.9,3884.9,0.08042893]
[1734271608829,2.57344,3885.9,3885.0,0.7912]
[1734271609071,1.07424911,3886.1,3885.0,0.7912]
[1734271609269,2.5734,3885.9,3885.1,0.7912]
[1734271610856,2.57344,3885.9,3885.1,0.7912]
[1734271611062,4.58170156,3886.3,3885.1,0.7912]
[1734271611258,5.31996079,3886.2,3885.1,0.7912]
[1734271611461,4.07424911,3886.2,3885.1,0.7912]
[1734271611641,2.57327,3886.1,3885.1,0.7912]
[1734271611855,2.57348,3885.8,3885.1,0.7912]
[1734271613757,3.50745245,3886.3,3885.1,0.7912]
[1734271613758,2.57334,3886.0,3885.1,0.7912]
[1734271614138,2.57319,3886.3,3885.1,0.7912]
[1734271614389,0.52171271,3886.6,3885.3,0.7912]
[1734271614594,2.57308,3886.4,3885.5,0.7912]
[1734271614942,2.57308,3886.4,3885.7,0.8104]
[1734271615543,0.5032327,3886.7,3885.7,0.8104]
[1734271615760,2.57324,3886.2,3885.7,0.8104]
[1734271616162,3.39434,3886.2,3885.0,0.8104]
[1734271616362,0.8211,3886.5,3884.6,0.025739]
[1734271616594,2.57329,3886.1,3885.1,0.93907528]
[1734271616894,0.5032327,3886.7,3885.2,0.12866531]
[1734271616895,2.57313,3886.4,3885.2,0.12866531]
[1734271617074,2.57313,3886.4,3884.9,2.57402]
[1734271617075,2.57316,3886.3,3885.3,0.8104]
[1734271617290,2.57316,3886.3,3885.4,0.08041582]
[1734271617507,2.57321,3886.2,3885.5,0.8104]
[1734271617819,0.8211,3886.7,3885.5,0.8104]
[1734271617942,2.57296,3886.6,3885.5,0.8104]
[1734271618147,2.57301,3886.5,3885.5,0.8104]
[1734271619192,3.51193221,3887.0,3885.5,1.148824]
[1734271619361,2.57334,3886.0,3885.5,0.8104]
[1734271619778,0.8211,3886.9,3885.5,0.8104]
[1734271619977,2.57343,3885.9,3885.5,0.8104]
[1734271622465,2.57325,3886.2,3885.5,0.8104]
[1734271622969,2.57304,3886.5,3885.5,0.8104]
[1734271623171,0.50813174,3886.8,3885.5,0.8104]
[1734271623495,2.57308,3886.4,3885.5,0.8104]
[1734271624077,2.57297,3886.6,3885.5,0.8104]
[1734271624271,3.8211,3886.9,3885.5,0.8104]
[1734271624485,3.8211,3886.9,3885.6,0.8104]
[1734271624894,2.57302,3886.5,3885.6,0.8104]
[1734271625598,2.57263,3887.1,3885.8,2.57345]
[1734271625766,2.57253,3887.3,3886.0,0.825]
[1734271625968,2.57253,3887.3,3885.9,0.10613594]
[1734271625969,2.57253,3887.3,3886.1,0.90540612]
[1734271626263,1.2981267,3887.9,3886.3,0.825]
[1734271626467,2.57238,3887.5,3886.3,0.825]
[1734271626694,2.57238,3887.5,3886.2,0.39054061]
[1734271626695,2.57241,3887.4,3886.5,0.825]
[1734271628404,2.57245,3887.4,3886.5,0.825]
[1734271628608,2.57245,3887.4,3886.6,0.0803914]
[1734271628909,2.57245,3887.4,3886.7,0.825]
[1734271629411,2.57249,3887.3,3886.7,0.825]
[1734271629914,2.57249,3887.3,3886.8,0.08039156]
[1734271630070,2.57249,3887.3,3886.7,0.825]
[1734271630409,2.57249,3887.3,3886.8,0.08039108]
[1734271630563,2.5723,3887.6,3886.9,0.08039113]
[1734271630767,2.5723,3887.6,3887.0,0.825]
[1734271631216,2.57209,3887.9,3887.0,0.825]
[1734271631418,2.57242,3887.4,3887.0,0.825]
[1734271631761,2.57227,3887.7,3887.0,0.825]
[1734271633171,2.5725,3887.3,3887.0,0.825]
[1734271634080,2.57236,3887.5,3887.0,0.825]
[1734271634296,3.7778,3887.9,3887.0,0.825]
[1734271634917,2.57234,3887.6,3887.0,0.825]
[1734271635411,3.7778,3887.9,3887.0,0.825]
[1734271636871,3.0,3887.9,3887.0,0.825]
[1734271637610,2.57241,3887.4,3887.0,0.825]
[1734271637780,3.0,3887.8,3887.0,0.825]
[1734271638110,3.0,3887.9,3887.0,0.825]
[1734271638280,2.5724,3887.5,3887.0,0.825]
[1734271639019,2.57242,3887.4,3887.0,0.825]
[1734271639168,2.57248,3887.3,3887.0,0.825]
[1734271639519,0.52197363,3888.1,3887.0,0.825]
[1734271639686,3.0,3888.0,3887.0,0.825]
[1734271639887,3.0,3887.8,3887.0,0.825]
[1734271640090,2.57228,3887.6,3887.0,0.825]
[1734271640309,2.57228,3887.6,3887.1,0.0803884]
[1734271640611,2.57228,3887.6,3887.0,0.825]
[1734271640910,2.57228,3887.6,3887.1,0.08038783]
[1734271641217,2.57228,3887.6,3887.0,0.825]
[1734271641369,2.57213,3887.9,3887.2,0.7585]
[1734271641782,2.57217,3887.8,3887.2,0.7585]
[1734271642016,2.57224,3887.7,3887.2,0.7585]
[1734271643477,2.57201,3888.0,3887.2,0.7585]
[1734271643873,2.57229,3887.6,3887.2,0.7585]
[1734271644790,2.57229,3887.6,3887.3,0.08038682]
[1734271645006,2.57229,3887.6,3887.2,0.7585]
[1734271645206,2.57238,3887.5,3887.2,0.7585]
[1734271646832,2.57244,3887.4,3887.2,0.7585]
[1734271648195,0.779,3888.0,3887.2,0.7585]
[1734271648196,2.57221,3887.8,3887.2,0.7585]
[1734271648399,2.57223,3887.7,3887.3,0.08038428]
[1734271648717,2.57223,3887.7,3887.2,0.7585]
[1734271648909,2.57223,3887.7,3887.3,0.08038435]
[1734271649076,2.57223,3887.7,3887.2,0.7585]
[1734271649276,2.57223,3887.7,3887.3,0.08038399]
[1734271649617,2.57223,3887.7,3887.2,0.7585]
[1734271649860,2.57223,3887.7,3887.3,0.08038428]
[1734271649979,2.57231,3887.6,3887.3,0.08038428]
[1734271650178,0.52197363,3888.1,3887.2,0.7585]
[1734271650506,2.57238,3887.5,3887.2,0.7585]
[1734271651408,2.57238,3887.5,3887.3,0.08038606]
[1734271651624,2.5722,3887.8,3887.2,0.7585]
[1734271651792,2.5722,3887.8,3887.3,0.08038319]
[1734271651991,2.5722,3887.8,3887.2,0.7585]
[1734271652195,1.07424911,3888.6,3887.2,0.7585]
[1734271652435,1.07424911,3888.6,3887.1,2.57255]
[1734271652436,2.57152,3888.8,3887.4,0.83888315]
[1734271652579,2.57175,3888.4,3887.4,0.7585]
[1734271652781,2.57175,3888.4,3887.6,0.7585]
[1734271653082,2.57175,3888.4,3887.8,0.7585]
[1734271653425,0.779,3888.9,3887.9,0.08038315]
[1734271653426,2.57166,3888.6,3887.9,0.08038315]
[1734271653577,2.57166,3888.6,3888.0,0.83888315]
[1734271653784,0.779,3888.9,3888.1,0.08038315]
[1734271654007,2.57169,3888.5,3888.2,0.08038315]
[1734271654322,2.57169,3888.5,3888.0,0.7585]
[1734271654530,2.57169,3888.5,3888.1,0.08036763]
[1734271654684,2.57169,3888.5,3888.2,0.08036763]
[1734271654885,2.57169,3888.5,3888.0,0.7585]
[1734271655084,2.57169,3888.5,3888.1,0.08036718]
[1734271655314,2.57169,3888.5,3888.0,0.7585]
[1734271655525,2.57169,3888.5,3888.1,0.08036725]
[1734271655732,2.57169,3888.5,3888.2,0.08036725]
[1734271655894,2.57169,3888.5,3888.0,0.7585]
[1734271656094,2.57155,3888.8,3888.1,0.08036724]
[1734271656297,3.52182098,3889.0,3888.2,0.08036724]
[1734271656298,2.57156,3888.7,3888.2,0.08036724]
[1734271656511,2.57156,3888.7,3888.0,0.7585]
[1734271656710,2.57164,3888.6,3888.1,0.08036634]
[1734271657017,2.57164,3888.6,3888.2,0.08036634]
[1734271657323,2.57164,3888.6,3888.0,0.7585]
[1734271657570,2.57164,3888.6,3888.1,0.08036629]
[1734271657771,2.57164,3888.6,3888.0,0.7585]
[1734271657928,2.57164,3888.6,3888.1,0.08036644]
[1734271658128,2.57164,3888.6,3888.0,0.7585]
[1734271658343,2.57164,3888.6,3888.1,0.08036634]
[1734271658580,2.57164,3888.6,3888.0,0.7585]
[1734271664580,3.0,3889.0,3888.0,0.7585]
[1734271664747,2.57151,3888.8,3888.0,0.7585]
[1734271665483,2.57156,3888.7,3888.0,0.7585]
[1734271665688,3.0,3889.0,3888.0,0.7585]
[1734271665993,2.57172,3888.5,3888.0,0.7585]
[1734271667172,3.0,3889.0,3888.0,0.7585]
[1734271667392,4.58830168,3889.1,3888.0,0.7585]
[1734271667586,4.24503951,3889.0,3888.0,0.7585]
[1734271667785,1.58830168,3889.1,3888.0,0.7585]
[1734271667992,4.24504088,3889.0,3888.0,0.7585]
[1734271668131,1.58830168,3889.1,3888.0,0.7585]
[1734271668333,2.57163,3888.6,3888.0,0.7585]
[1734271668767,2.57163,3888.6,3888.4,0.00165857]
[1734271671001,1.07424911,3889.0,3888.4,0.00165857]
[1734271671206,2.57149,3888.8,3888.4,0.00165857]
[1734271671674,2.57158,3888.7,3888.4,0.00165857]
[1734271672302,2.57142,3888.9,3888.5,0.7684]
[1734271673207,2.5715,3888.8,3888.5,0.7684]
[1734271674401,2.57135,3889.0,3888.5,0.7684]
[1734271674608,1.07424911,3889.1,3888.5,0.7684]
[1734271674906,2.57142,3888.9,3888.5,0.7684]
[1734271675573,2.57149,3888.8,3888.5,0.7684]
[1734271677457,2.57156,3888.7,3888.5,0.7684]
[1734271677764,2.57156,3888.7,3888.4,0.00165857]
[1734271677765,2.57168,3888.5,3888.4,0.00165857]
[1734271677960,3.64559911,3889.0,3888.4,0.00165857]
[1734271678159,4.61635794,3889.2,3888.4,0.00165857]
[1734271678160,1.07424911,3889.1,3888.4,0.00165857]
[1734271678402,2.57155,3888.7,3888.4,0.00165857]
[1734271679192,1.07424911,3889.0,3888.4,0.00165857]
[1734271679193,2.57142,3888.9,3888.4,0.00165857]
[1734271679592,1.07424911,3889.1,3888.4,0.00165857]
[1734271679788,3.0,3889.2,3888.4,0.00165857]
[1734271679789,2.57158,3888.7,3888.4,0.00165857]
[1734271680816,2.57165,3888.6,3888.4,0.00165857]
[1734271682267,2.57149,3888.8,3888.4,0.00165857]
[1734271683506,2.57164,3888.6,3888.4,0.00165857]
[1734271685914,3.64572911,3888.9,3888.4,0.00165857]
[1734271686210,1.24748331,3888.8,3888.4,0.00165857]
[1734271686418,2.57155,3888.7,3888.4,0.00165857]
[1734271687614,3.64566911,3888.9,3888.5,0.7567]
[1734271687867,1.24774088,3888.8,3888.5,0.7567]
[1734271688027,3.64566911,3888.9,3888.5,0.7567]
[1734271688362,1.24775734,3888.8,3888.5,0.7567]
[1734271688515,3.64566911,3888.9,3888.5,0.7567]
[1734271688725,1.24786361,3888.8,3888.5,0.7567]
[1734271688963,3.64566911,3888.9,3888.5,0.7567]
[1734271689257,1.24786589,3888.8,3888.5,0.7567]
[1734271689431,2.57161,3888.6,3888.5,0.7567]
[1734271689629,2.57168,3888.5,3888.4,0.00165857]
[1734271690463,2.57168,3888.5,3888.4,0.08202291]
[1734271690759,2.57168,3888.5,3888.4,0.00165857]
[1734271691318,3.82013516,3888.5,3888.4,0.00165857]
[1734271692565,3.82013516,3888.5,3888.4,0.08202577]
[1734271692761,2.57168,3888.5,3888.4,0.08202577]
[1734271693269,2.57168,3888.5,3888.4,0.00165857]
[1734271693270,4.89466777,3888.5,3888.4,0.00165857]
[1734271693474,3.82041866,3888.5,3888.4,0.00165857]
[1734271694326,6.2188766,3888.5,3888.4,0.00165857]
[1734271694873,6.26841648,3888.5,3888.4,0.00165857]
[1734271695317,6.21980572,3888.5,3888.4,0.00165857]
[1734271695666,6.26967263,3888.5,3888.4,0.00165857]
[1734271696469,8.42481655,3888.5,3888.4,0.00165857]
[1734271696684,6.26967263,3888.5,3888.4,0.00165857]
[1734271697208,8.42481655,3888.5,3888.4,0.00165857]
[1734271697608,6.26967263,3888.5,3888.4,0.00165857]
[1734271699209,5.48757263,3888.5,3888.4,0.00165857]
[1734271699393,5.97968656,3888.5,3888.4,0.00165857]
[1734271699591,5.48757263,3888.5,3888.4,0.00165857]
[1734271700280,9.51738406,3888.5,3888.4,8.57e-06]
[1734271700486,9.26977263,3888.5,3888.4,8.57e-06]
[1734271704644,11.96580795,3888.5,3888.4,8.57e-06]
[1734271705515,9.26977263,3888.5,3888.4,8.57e-06]
[1734271706117,11.96556026,3888.5,3888.4,8.57e-06]
[1734271706347,9.26977263,3888.5,3888.4,8.57e-06]
[1734271706734,11.96556026,3888.5,3888.4,8.57e-06]
[1734271707057,9.26977263,3888.5,3888.4,8.57e-06]
[1734271708575,9.26630222,3888.5,3888.4,8.57e-06]
[1734271709014,11.96152302,3888.5,3888.4,8.57e-06]
[1734271710463,11.42209832,3888.5,3888.4,8.57e-06]
[1734271711721,10.63989832,3888.5,3888.4,8.57e-06]
[1734271711921,8.48410222,3888.5,3888.4,8.57e-06]
[1734271712230,10.63989832,3888.5,3888.4,8.57e-06]
[1734271712432,8.48410222,3888.5,3888.4,8.57e-06]
[1734271713052,10.63989832,3888.5,3888.4,8.57e-06]
[1734271713436,5.48410222,3888.5,3888.4,8.57e-06]
[1734271714491,5.43458957,3888.5,3888.1,0.8045]
[1734271714651,1.07778591,3888.3,3888.1,0.8045]
[1734271714857,1.24929776,3888.2,3888.1,0.8045]
[1734271715065,2.32708367,3888.2,3888.1,0.8045]
[1734271715272,4.89896367,3888.2,3888.1,0.8045]
[1734271715997,4.89865222,3888.2,3888.1,0.8045]
[1734271716557,2.32677222,3888.2,3888.1,0.8045]
[1734271717390,1.07778591,3888.2,3888.1,0.8045]
[1734271718493,2.32676667,3888.2,3888.1,0.8045]
[1734271718868,3.82086076,3888.2,3888.1,0.8045]
[1734271719393,4.89870798,3888.2,3888.1,0.8045]
[1734271719751,2.32682798,3888.2,3888.1,0.8045]
[1734271719956,1.07787269,3888.4,3888.1,0.8045]
[1734271720301,1.07787269,3888.6,3888.1,0.8045]
[1734271720488,1.07787269,3888.7,3888.1,0.8045]
[1734271720667,1.24889076,3888.6,3888.1,0.8045]
[1734271720867,1.07787269,3888.7,3888.1,0.8045]
[1734271721095,1.2488802,3888.6,3888.1,0.8045]
[1734271721299,1.07787269,3888.7,3888.1,0.8045]
[1734271721600,2.32677148,3888.6,3888.1,0.8045]
[1734271721757,4.89847148,3888.5,3888.1,0.8045]
[1734271722092,2.32677148,3888.4,3888.1,0.8045]
[1734271722659,2.5717,3888.5,3888.1,0.8045]
[1734271722660,3.64957269,3888.5,3888.1,0.8045]
[1734271722916,1.2489835,3888.4,3888.1,0.8045]
[1734271723062,3.64957269,3888.5,3888.1,0.8045]
[1734271723255,1.24902513,3888.4,3888.1,0.8045]
[1734271723486,3.64957269,3888.5,3888.1,0.8045]
[1734271723686,1.24904362,3888.4,3888.1,0.8045]
[1734271723900,1.07787269,3888.6,3888.1,0.8045]
[1734271724102,1.2490156,3888.5,3888.1,0.8045]
[1734271724396,1.07787269,3888.6,3888.1,0.8045]
[1734271724600,1.07787269,3888.6,3888.2,0.08036343]
[1734271724798,1.07787269,3888.6,3888.1,0.8045]
[1734271725162,1.07787269,3888.6,3888.2,0.08036315]
[1734271725390,1.07787269,3888.7,3888.1,0.8045]
[1734271725595,2.32687836,3888.6,3888.1,0.8045]
[1734271725770,4.18813171,3888.9,3888.1,0.8045]
[1734271725771,1.07787269,3888.7,3888.2,0.08036375]
[1734271725971,1.07787269,3888.7,3888.3,0.08036375]